bitfinex/quotes_ETHUSD_20250726
["timestamp","ask_amount","ask_price","bid_price","bid_amount"]
[1753508846421,0.1336,3751.3,3751.2,1.2139]
[1753508847360,0.1336,3751.3,3751.2,1.6646]
[1753508847768,0.1336,3751.3,3751.2,0.7779]
[1753508849636,0.1336,3751.3,3751.2,1.2139]
[1753508850233,0.1336,3751.3,3751.2,0.7779]
[1753508850477,0.1336,3751.3,3750.8,2.66604165]
[1753508850776,0.1336,3751.3,3750.9,0.49301299]
[1753508853584,0.1336,3751.3,3751.0,0.8324]
[1753508853754,0.6239,3751.3,3751.0,0.8324]
[1753508855373,0.1336,3751.3,3751.0,0.8324]
[1753508855964,0.6239,3751.3,3751.0,0.8324]
[1753508856152,0.1336,3751.3,3751.0,0.8324]
[1753508856361,0.4903,3751.2,3750.7,0.8324]
[1753508856691,1.0667,3751.1,3750.7,1.43762179]
[1753508856895,0.1336,3751.1,3750.7,1.43762179]
[1753508857056,0.9331,3751.0,3750.7,1.43762179]
[1753508857255,0.9331,3751.0,3750.7,0.8324]
[1753508857463,0.1336,3750.8,3750.7,0.8324]
[1753508857668,0.6239,3750.8,3750.7,0.8324]
[1753508858087,0.1336,3750.8,3750.7,0.8324]
[1753508858289,0.1336,3750.8,3750.6,2.66620226]
[1753508858591,0.1336,3750.8,3750.6,3.35515374]
[1753508859589,0.1336,3750.8,3750.7,2.66616898]
[1753508859894,0.1336,3750.8,3750.6,3.35515676]
[1753508860485,0.1336,3750.8,3750.7,2.66616898]
[1753508860856,1.2882,3751.7,3750.6,0.68893263]
[1753508861092,0.1336,3751.2,3750.8,0.8229]
[1753508861253,0.1336,3751.2,3750.9,2.66600662]
[1753508861459,0.4903,3751.6,3751.2,2.66581169]
[1753508861693,0.1336,3751.3,3751.2,2.69246982]
[1753508861992,0.4903,3752.0,3751.4,2.66566593]
[1753508862213,0.1336,3751.6,3751.3,2.66573662]
[1753508862697,0.6239,3751.6,3751.3,2.66573662]
[1753508862874,0.4903,3751.5,3751.3,2.66573662]
[1753508863063,0.1336,3751.6,3751.3,2.66573662]
[1753508863264,0.1336,3751.6,3751.3,3.09075519]
[1753508863468,0.6239,3751.6,3751.3,3.09075519]
[1753508864019,0.1336,3751.6,3751.3,0.42501857]
[1753508864179,0.4923,3752.1,3751.7,2.66545752]
[1753508864372,0.1336,3751.9,3751.6,2.66551462]
[1753508864577,0.1336,3751.9,3751.7,2.66544087]
[1753508865079,0.1336,3751.9,3751.7,2.69209545]
[1753508865280,0.002,3752.1,3751.8,2.66538728]
[1753508865586,0.6259,3752.1,3751.7,3.29066699]
[1753508865785,0.1356,3752.1,3751.7,3.29066699]
[1753508866082,0.4903,3752.0,3751.7,3.29066699]
[1753508866284,0.4903,3752.0,3751.7,0.62520933]
[1753508866607,0.4903,3752.0,3751.7,2.66541327]
[1753508867083,0.4903,3752.0,3751.8,2.66537895]
[1753508867284,0.1356,3752.1,3751.8,2.66537895]
[1753508867474,0.1356,3752.1,3752.0,3.4615452]
[1753508867886,0.1356,3752.1,3752.0,0.7963]
[1753508869000,0.6271,3752.1,3752.0,0.7963]
[1753508872173,1.0563,3752.1,3752.0,0.7963]
[1753508872373,1.0563,3752.1,3751.8,0.7963]
[1753508872573,0.5648,3752.1,3751.8,0.7963]
[1753508872810,0.4915,3752.0,3751.8,0.7963]
[1753508876014,0.4915,3752.0,3751.7,2.42]
[1753508876508,0.4915,3752.0,3751.7,5.08540651]
[1753508876697,0.4915,3752.0,3751.7,2.42]
[1753508877514,0.4915,3752.0,3751.7,5.08545271]
[1753508877710,0.002,3752.1,3751.8,2.66533714]
[1753508878315,0.4935,3752.1,3751.8,2.66533714]
[1753508879103,0.4935,3752.1,3751.8,3.44343714]
[1753508879807,0.4935,3752.1,3751.9,2.66531536]
[1753508880528,0.4935,3752.1,3751.8,3.44347485]
[1753508880909,0.9207,3752.0,3751.7,2.42]
[1753508881110,0.9207,3751.9,3751.7,2.42]
[1753508881315,0.002,3752.1,3751.7,2.42]
[1753508881524,0.9207,3751.8,3751.7,2.42]
[1753508881726,3.58608728,3751.8,3751.1,2.66586152]
[1753508882038,4.38390986,3751.7,3751.1,0.1336]
[1753508882267,2.66556802,3751.6,3751.2,2.419]
[1753508882541,0.1336,3751.5,3751.2,2.419]
[1753508882838,0.9207,3751.4,3751.2,2.419]
[1753508883048,0.9207,3751.3,3750.9,0.1336]
[1753508883202,0.9207,3751.3,3750.8,2.42]
[1753508883203,3.43342997,3751.2,3750.8,2.42]
[1753508883404,1.0543,3751.1,3750.8,2.42]
[1753508883717,0.9207,3751.0,3750.8,2.42]
[1753508883906,0.9207,3750.9,3750.8,2.42]
[1753508884439,0.9207,3750.9,3750.6,0.001]
[1753508884735,0.9207,3750.8,3750.6,2.421]
[1753508884897,0.4292,3750.8,3750.6,2.421]
[1753508885101,0.4915,3750.7,3750.6,2.421]
[1753508886816,0.1336,3751.1,3750.6,2.421]
[1753508886817,0.4915,3750.9,3750.6,5.68597376]
[1753508887571,0.4915,3750.9,3750.7,2.66614143]
[1753508887747,0.4915,3750.9,3750.6,5.68598634]
[1753508888562,0.4915,3750.9,3750.6,3.01975053]
[1753508889772,0.4915,3750.9,3750.6,5.6859779]
[1753508890661,0.4915,3750.9,3750.6,5.68597265]
[1753508891053,0.4915,3750.9,3750.7,2.419]
[1753508895569,0.4915,3750.8,3750.7,2.419]
[1753508896972,0.9207,3750.8,3750.7,2.419]
[1753508898868,0.4915,3750.8,3750.7,2.419]
[1753508905278,0.9236,3750.8,3750.7,2.419]
[1753508908648,0.9256,3750.8,3750.7,2.419]
[1753508915793,0.8075,3750.7,3750.6,0.001]
[1753508915957,1.6938,3750.7,3750.6,0.001]
[1753508916405,2.40994772,3750.7,3750.6,0.001]
[1753508916570,5.0761167,3750.7,3750.6,0.001]
[1753508918465,2.40994772,3750.7,3750.6,0.001]
[1753508918698,1.6938,3750.7,3750.6,0.001]
[1753508919583,4.35996898,3750.7,3750.6,0.001]
[1753508920199,1.6938,3750.7,3750.6,0.001]
[1753508920401,4.1128,3750.7,3750.6,0.001]
[1753508922182,13.87909737,3750.7,3750.6,0.001]
[1753508922382,14.69699737,3750.7,3750.6,0.001]
[1753508923170,14.83799849,3750.7,3750.6,0.001]
[1753508923784,15.63768745,3750.7,3750.6,0.001]
[1753508926288,15.38799849,3750.7,3750.6,0.001]
[1753508928014,15.38899849,3750.7,3750.6,0.001]
[1753508929694,12.96899849,3750.7,3750.6,0.001]
[1753508929895,15.38899849,3750.7,3750.6,0.001]
[1753508930616,12.96899849,3750.7,3750.6,0.001]
[1753508930824,15.38899849,3750.7,3750.6,0.001]
[1753508932198,15.52259849,3750.7,3750.6,0.001]
[1753508933825,13.10259849,3750.7,3750.6,0.001]
[1753508934123,15.38159737,3750.7,3750.6,0.001]
[1753508934322,15.52211683,3750.7,3750.6,0.001]
[1753508935221,15.38159737,3750.7,3750.6,0.001]
[1753508937220,15.52211885,3750.7,3750.6,0.001]
[1753508940724,11.30593355,3750.7,3750.6,0.001]
[1753508946418,11.30614057,3750.7,3750.6,0.001]
[1753508949146,11.55574106,3750.7,3750.6,0.001]
[1753508949306,10.57364106,3750.7,3750.6,0.001]
[1753508949706,6.39469748,3750.7,3750.6,0.001]
[1753508949905,8.81469748,3750.7,3750.6,0.001]
[1753508950144,6.19021058,3750.7,3750.6,0.001]
[1753508950341,8.36049748,3750.7,3750.6,0.001]
[1753508950550,5.94049748,3750.7,3750.6,0.001]
[1753508950844,8.36049748,3750.7,3750.6,0.001]
[1753508951208,8.61032347,3750.7,3750.6,0.001]
[1753508951409,9.07092347,3750.7,3750.6,0.001]
[1753508952949,9.52862347,3750.7,3750.6,0.001]
[1753508955960,12.16471853,3750.7,3750.6,0.001]
[1753508960358,12.16528112,3750.7,3750.6,0.001]
[1753508965265,12.16428112,3750.7,3750.6,0.001]
[1753508965672,9.74528112,3750.7,3750.6,0.001]
[1753508965875,12.16428112,3750.7,3750.6,0.001]
[1753508967757,12.16423082,3750.7,3750.6,0.001]
[1753508967943,12.02315065,3750.7,3750.6,0.001]
[1753508969971,9.60415065,3750.7,3750.6,0.001]
[1753508970276,12.02315065,3750.7,3750.6,0.001]
[1753508973355,11.91420737,3750.7,3750.6,0.001]
[1753508973557,12.16417975,3750.7,3750.6,0.001]
[1753508977360,12.16417608,3750.7,3750.6,0.001]
[1753508980212,12.02313642,3750.7,3750.6,0.001]
[1753508980505,12.1641792,3750.7,3750.6,0.001]
[1753508981895,9.7451792,3750.7,3750.6,0.001]
[1753508982100,12.1641792,3750.7,3750.6,0.001]
[1753508984011,12.16423213,3750.7,3750.6,0.001]
[1753508984723,9.74523213,3750.7,3750.6,0.001]
[1753508984928,12.16423213,3750.7,3750.6,0.001]
[1753508986917,15.1454338,3750.7,3750.6,0.001]
[1753508990631,15.29553122,3750.7,3750.6,0.001]
[1753508991934,15.29566554,3750.7,3750.6,0.001]
[1753508995533,2.66673777,3749.9,3749.8,0.001]
[1753508995852,11.20053944,3749.9,3749.8,0.001]
[1753508996135,12.13963944,3749.9,3749.8,0.001]
[1753508996839,11.67603944,3749.9,3749.8,0.001]
[1753508997718,11.87099942,3749.9,3749.8,0.001]
[1753508997926,12.81009942,3749.9,3749.8,0.001]
[1753508998241,12.34649942,3749.9,3749.8,0.001]
[1753508998454,13.20131494,3749.9,3749.8,0.001]
[1753508998756,10.22011327,3749.9,3749.8,0.001]
[1753508999819,7.80111327,3749.9,3749.8,0.001]
[1753509000144,8.61055329,3749.9,3749.8,0.001]
[1753509000330,9.08605329,3749.9,3749.8,0.001]
[1753509001850,9.54965329,3749.9,3749.8,0.001]
[1753509002624,8.61055329,3749.9,3749.8,0.001]
[1753509002862,9.08605329,3749.9,3749.8,0.001]
[1753509003250,10.78373761,3749.9,3749.8,0.001]
[1753509003446,11.24733761,3749.9,3749.8,0.001]
[1753509004162,6.19155329,3749.9,3749.8,0.001]
[1753509004542,8.61055329,3749.9,3749.8,0.9106]
[1753509004942,8.61055329,3749.9,3749.8,0.8125]
[1753509005669,8.46944578,3749.9,3749.8,0.8125]
[1753509006474,8.21933777,3749.9,3749.8,0.8125]
[1753509008030,3.1336,3749.9,3749.8,0.8125]
[1753509008236,5.5526,3749.9,3749.8,0.9106]
[1753509008473,8.21933777,3749.9,3749.8,0.9106]
[1753509008773,8.21933777,3749.9,3749.8,0.8125]
[1753509009635,5.5526,3749.9,3749.8,0.8125]
[1753509011380,8.21933777,3749.9,3749.8,0.8125]
[1753509012893,5.5526,3749.9,3749.8,0.8125]
[1753509013900,5.49485615,3749.9,3749.8,0.8125]
[1753509014065,0.1336,3749.9,3749.8,0.8125]
[1753509014271,2.5526,3749.9,3749.8,0.8125]
[1753509019602,2.5526,3749.9,3749.8,1.17302805]
[1753509019902,2.5526,3749.9,3749.8,0.8125]
[1753509023414,0.1336,3749.9,3749.8,0.8125]
[1753509023606,2.5516,3749.9,3749.8,0.8125]
[1753509023781,0.1336,3749.9,3749.8,0.8125]
[1753509023983,2.5516,3749.9,3749.8,0.8125]
[1753509024605,0.1336,3749.9,3749.8,0.8125]
[1753509024819,2.418,3750.0,3749.8,1.1632184]
[1753509026034,0.1336,3750.1,3749.8,0.8125]
[1753509026215,2.418,3749.9,3749.8,0.8125]
[1753509027383,2.8702,3749.9,3749.8,0.8125]
[1753509027585,3.3096,3749.9,3749.8,0.8125]
[1753509027812,0.4522,3749.9,3749.8,0.8125]
[1753509028028,2.8702,3749.9,3749.8,0.8125]
[1753509031932,2.418,3749.9,3749.8,0.8125]
[1753509033230,2.8702,3749.9,3749.8,0.8125]
[1753509034432,0.8916,3749.9,3749.8,0.8125]
[1753509034632,3.3096,3749.9,3749.8,0.8125]
[1753509035097,3.3096,3749.9,3749.8,0.001]
[1753509037429,5.97633777,3749.9,3749.8,0.001]
[1753509037594,7.00757155,3749.9,3749.8,0.001]
[1753509038425,6.10993777,3749.9,3749.8,0.001]
[1753509045839,3.69193777,3749.9,3749.8,0.001]
[1753509046028,6.10993777,3749.9,3749.8,0.001]
[1753509049969,2.5516,3749.9,3749.8,0.001]
[1753509050174,3.0391,3749.9,3749.8,0.001]
[1753509050378,6.14433777,3749.9,3749.8,0.001]
[1753509050676,9.14433777,3749.9,3749.8,0.001]
[1753509056678,9.39442743,3749.9,3749.8,0.001]
[1753509056879,9.39442626,3749.9,3749.8,0.001]
[1753509057203,9.14433777,3749.9,3749.8,0.001]
[1753509057351,9.39442582,3749.9,3749.8,0.001]
[1753509057552,9.14433777,3749.9,3749.8,0.001]
[1753509058093,9.39442553,3749.9,3749.8,0.001]
[1753509058591,9.39442303,3749.9,3749.8,0.001]
[1753509058785,9.14433777,3749.9,3749.8,0.001]
[1753509061509,9.39642122,3749.9,3749.8,0.001]
[1753509062068,9.14633777,3749.9,3749.8,0.001]
[1753509062371,9.396419,3749.9,3749.8,0.001]
[1753509062668,9.14633777,3749.9,3749.8,0.001]
[1753509065309,3.1356,3749.9,3749.8,0.001]
[1753509065503,5.5526,3749.9,3749.8,0.001]
[1753509066273,6.0401,3749.9,3749.8,0.001]
[1753509067208,8.21933777,3749.9,3749.8,0.001]
[1753509067390,9.14533777,3749.9,3749.8,0.001]
[1753509068782,6.4786,3749.9,3749.8,0.001]
[1753509070799,4.0616,3749.9,3749.8,0.001]
[1753509070999,6.4786,3749.9,3749.8,0.001]
[1753509073507,9.14533777,3749.9,3749.8,0.001]
[1753509074144,6.4786,3749.9,3749.8,0.001]
[1753509076739,4.0616,3749.9,3749.8,0.001]
[1753509076942,6.4786,3749.9,3749.8,0.001]
[1753509077237,6.72833777,3749.9,3749.8,0.001]
[1753509077444,9.14533777,3749.9,3749.8,0.001]
[1753509080609,9.93183777,3749.9,3749.8,0.001]
[1753509081546,11.5829619,3749.9,3749.8,0.001]
[1753509082947,11.33281319,3749.9,3749.8,0.001]
[1753509084548,11.58287818,3749.9,3749.8,0.001]
[1753509085567,12.13287818,3749.9,3749.8,0.001]
[1753509088763,11.74168169,3749.9,3749.8,0.001]
[1753509088966,12.13270691,3749.9,3749.8,0.001]
[1753509090940,11.88269663,3749.9,3749.8,0.001]
[1753509091141,12.13265901,3749.9,3749.8,0.001]
[1753509091979,8.23965901,3749.9,3749.8,0.001]
[1753509092272,5.21933777,3749.9,3749.8,0.001]
[1753509092479,8.21933777,3749.9,3749.8,0.001]
[1753509092894,6.05226209,3749.9,3749.8,0.001]
[1753509093094,8.46926209,3749.9,3749.8,0.001]
[1753509093295,8.94666209,3749.9,3749.8,0.001]
[1753509093798,9.08766656,3749.9,3749.8,0.001]
[1753509093997,8.94666209,3749.9,3749.8,0.001]
[1753509094701,8.69673777,3749.9,3749.8,0.001]
[1753509094901,9.08766372,3749.9,3749.8,0.001]
[1753509095281,8.83774299,3749.9,3749.8,0.001]
[1753509095711,9.08765583,3749.9,3749.8,0.001]
[1753509096092,9.53335583,3749.9,3749.8,0.001]
[1753509096583,9.53334763,3749.9,3749.8,0.001]
[1753509096788,9.28344299,3749.9,3749.8,0.001]
[1753509096971,9.14243777,3749.9,3749.8,0.001]
[1753509099411,10.40249169,3749.9,3749.8,0.001]
[1753509099996,10.54349408,3749.9,3749.8,0.001]
[1753509100477,5.94334016,3749.9,3749.8,0.001]
[1753509100681,8.46926498,3749.9,3749.8,0.001]
[1753509100883,8.94666498,3749.9,3749.8,0.001]
[1753509101810,9.39236498,3749.9,3749.8,0.001]
[1753509105441,9.5333983,3749.9,3749.8,0.001]
[1753509105937,10.83254827,3749.9,3749.8,0.001]
[1753509106440,10.83255562,3749.9,3749.8,0.001]
[1753509107641,8.41555562,3749.9,3749.8,0.001]
[1753509107839,9.53340565,3749.9,3749.8,0.001]
[1753509108018,9.39236498,3749.9,3749.8,0.001]
[1753509108409,9.53342295,3749.9,3749.8,0.001]
[1753509108607,9.53342322,3749.9,3749.8,0.001]
[1753509111315,10.83257569,3749.9,3749.8,0.001]
[1753509111510,11.65287569,3749.9,3749.8,0.001]
[1753509112448,12.20287569,3749.9,3749.8,0.001]
[1753509114843,12.202886,3749.9,3749.8,0.001]
[1753509120447,9.785886,3749.9,3749.8,0.001]
[1753509120651,12.201886,3749.9,3749.8,0.001]
[1753509122517,12.20184475,3749.9,3749.8,0.001]
[1753509122860,9.78584475,3749.9,3749.8,0.001]
[1753509123020,12.20184475,3749.9,3749.8,0.001]
[1753509128260,12.20182051,3749.9,3749.8,0.001]
[1753509130530,12.20184194,3749.9,3749.8,0.001]
[1753509134132,12.20184347,3749.9,3749.8,0.001]
[1753509142097,10.72874347,3749.9,3749.8,0.001]
[1753509142288,9.90844347,3749.9,3749.8,0.001]
[1753509142478,7.96234347,3749.9,3749.8,0.001]
[1753509142674,6.193291,3749.9,3749.8,0.001]
[1753509143092,8.609291,3749.9,3749.8,0.001]
[1753509143613,5.94255323,3749.9,3749.8,0.0991]
[1753509143817,8.609291,3749.9,3749.8,0.0991]
[1753509143971,8.609291,3749.9,3749.8,0.001]
[1753509145391,6.193291,3749.9,3749.8,0.001]
[1753509145601,8.609291,3749.9,3749.8,0.001]
[1753509145896,8.60945068,3749.9,3749.8,0.001]
[1753509147214,6.19345068,3749.9,3749.8,0.001]
[1753509147389,8.60945068,3749.9,3749.8,0.001]
[1753509148322,8.60943243,3749.9,3749.8,0.001]
[1753509150425,8.46837485,3749.9,3749.8,0.001]
[1753509151224,8.46831794,3749.9,3749.8,0.001]
[1753509151423,8.21833777,3749.9,3749.8,0.001]
[1753509151623,8.46831493,3749.9,3749.8,0.001]
[1753509151811,8.93821493,3749.9,3749.8,0.001]
[1753509152432,8.68823777,3749.9,3749.8,0.001]
[1753509152634,8.21833777,3749.9,3749.8,0.001]
[1753509153123,8.68823777,3749.9,3749.8,0.001]
[1753509153823,8.21833777,3749.9,3749.8,0.001]
[1753509154149,5.5516,3749.9,3749.8,0.001]
[1753509154348,8.21833777,3749.9,3749.8,0.001]
[1753509154855,5.5516,3749.9,3749.8,0.001]
[1753509155148,8.21833777,3749.9,3749.8,0.001]
[1753509156129,8.68823777,3749.9,3749.8,0.001]
[1753509157614,8.21733777,3749.9,3749.8,0.001]
[1753509158654,8.68723777,3749.9,3749.8,0.001]
[1753509162285,9.14833777,3749.9,3749.8,0.001]
[1753509167859,9.97913777,3749.9,3749.8,0.001]
[1753509168272,11.24371228,3749.9,3749.8,0.001]
[1753509172550,11.63461849,3749.9,3749.8,0.001]
[1753509175182,11.63463215,3749.9,3749.8,0.001]
[1753509178095,11.63463373,3749.9,3749.8,0.001]
[1753509180796,11.63466988,3749.9,3749.8,0.001]
[1753509183098,9.21966988,3749.9,3749.8,0.001]
[1753509183304,8.60829537,3749.9,3749.8,0.001]
[1753509183502,6.19329537,3749.9,3749.8,0.001]
[1753509183799,8.60829537,3749.9,3749.8,0.001]
[1753509183985,9.10299537,3749.9,3749.8,0.001]
[1753509184185,9.53759537,3749.9,3749.8,0.001]
[1753509184999,7.12259537,3749.9,3749.8,0.001]
[1753509185185,6.19329537,3749.9,3749.8,0.001]
[1753509185385,8.46728714,3749.9,3749.8,0.001]
[1753509186575,6.05228714,3749.9,3749.8,0.001]
[1753509187074,8.46722001,3749.9,3749.8,0.001]
[1753509187405,8.21733777,3749.9,3749.8,0.001]
[1753509190194,5.5506,3749.9,3749.8,0.001]
[1753509191322,8.21733777,3749.9,3749.8,0.001]
[1753509192719,5.5506,3749.9,3749.8,0.001]
[1753509193094,8.21733777,3749.9,3749.8,0.001]
[1753509194131,8.71203777,3749.9,3749.8,0.001]
[1753509194439,5.80233777,3749.9,3749.8,0.001]
[1753509194731,8.71203777,3749.9,3749.8,0.001]
[1753509198464,0.1356,3749.9,3749.8,2.66780889]
[1753509198623,0.002,3749.9,3749.8,4.11358027]
[1753509201933,0.002,3749.9,3749.8,4.14024835]
[1753509202133,0.002,3749.9,3749.8,4.11358027]
[1753509202474,0.002,3749.9,3749.8,4.14024835]
[1753509202629,0.002,3749.9,3749.8,4.11358027]
[1753509203052,0.002,3749.9,3749.8,6.52758027]
[1753509204859,0.002,3749.9,3749.8,7.07758027]
[1753509205459,0.002,3750.6,3750.5,2.66631115]
[1753509205665,0.002,3750.6,3750.5,3.74184226]
[1753509205963,0.002,3750.6,3750.5,3.86660537]
[1753509206143,0.002,3750.6,3750.5,3.83994226]
[1753509206344,0.002,3750.6,3750.5,3.86660537]
[1753509206540,0.002,3750.6,3750.5,3.76850537]
[1753509206774,0.002,3750.6,3750.5,4.38994226]
[1753509208076,0.002,3750.7,3750.5,7.38994226]
[1753509208264,0.4827,3751.7,3751.3,2.66574254]
[1753509208571,0.4827,3751.9,3751.3,5.90119996]
[1753509208729,0.4827,3751.9,3751.3,6.00814254]
[1753509209163,0.002,3752.1,3751.3,6.10624254]
[1753509210672,0.002,3752.1,3751.3,6.65624254]
[1753509210879,0.002,3752.1,3751.3,7.98599457]
[1753509211061,0.002,3752.1,3751.4,4.01047148]
[1753509211262,1e-08,3751.6,3751.5,2.66560042]
[1753509211467,1e-08,3751.6,3751.5,3.59400042]
[1753509211661,1e-08,3751.6,3751.5,3.69210042]
[1753509211862,1e-08,3751.6,3751.5,7.47069704]
[1753509212877,0.91560001,3751.6,3751.5,7.47069704]
[1753509214686,1e-08,3751.6,3751.5,7.47069704]
[1753509215774,0.48270001,3751.6,3751.5,7.47069704]
[1753509216281,0.91560001,3751.6,3751.5,7.47069704]
[1753509216576,1e-08,3751.6,3751.5,7.47069704]
[1753509219004,1e-08,3751.6,3751.5,7.56879704]
[1753509222478,1e-08,3751.6,3751.5,7.47069704]
[1753509226315,1e-08,3751.6,3751.5,8.02069704]
[1753509228821,1e-08,3751.6,3751.5,8.11879704]
[1753509229017,1e-08,3751.6,3751.5,11.11879704]
[1753509232614,0.002,3752.1,3751.5,11.11879704]
[1753509232615,0.002,3752.1,3752.0,6.9713452]
[1753509232900,0.002,3752.1,3752.0,14.4570556]
[1753509233429,1e-08,3752.1,3752.0,14.4570556]
[1753509234009,1e-08,3752.4,3752.3,1.349]
[1753509234206,1e-08,3752.4,3752.3,9.42703211]
[1753509234405,1e-08,3752.4,3752.3,9.65873211]
[1753509234604,0.4669,3753.3,3752.3,9.65873211]
[1753509234605,0.002,3753.7,3752.8,7.01367704]
[1753509234788,0.4982,3753.0,3752.8,13.40311931]
[1753509234989,0.5002,3752.9,3752.8,13.53671931]
[1753509237936,0.5002,3752.9,3752.8,13.74141266]
[1753509239529,0.9671,3752.9,3752.8,13.74141266]
[1753509239723,0.9671,3752.9,3752.8,15.76593088]
[1753509241233,0.9671,3752.9,3752.8,13.35193088]
[1753509241413,0.9671,3752.9,3752.8,15.76493088]
[1753509242232,0.9671,3752.9,3752.8,7.82279526]
[1753509242448,0.9671,3752.9,3752.8,5.21227704]
[1753509242798,1.783,3752.9,3752.8,2.79827704]
[1753509243171,1.783,3752.9,3752.8,5.21227704]
[1753509244334,1.783,3752.9,3752.8,2.79827704]
[1753509244499,1.783,3752.9,3752.8,5.21227704]
[1753509245312,1.783,3752.9,3752.8,2.79827704]
[1753509245638,1.783,3752.9,3752.8,5.21227704]
[1753509245826,1.783,3752.9,3752.8,2.5476]
[1753509246835,1.783,3752.9,3752.8,0.1336]
[1753509247021,1.783,3752.9,3752.8,2.5476]
[1753509257761,1.783,3752.9,3752.8,2.5476]
[1753509258379,1.783,3752.9,3752.8,2.413]
[1753509259357,1.783,3752.9,3752.6,0.1336]
[1753509259560,0.8179,3752.9,3752.7,2.413]
[1753509259781,0.918,3752.8,3752.7,2.413]
[1753509261482,0.918,3752.8,3752.6,0.1336]
[1753509261786,0.8179,3752.9,3752.7,2.413]
[1753509262597,0.918,3752.8,3752.7,2.413]
[1753509263266,0.918,3752.8,3752.6,0.1336]
[1753509263588,1.7003,3752.7,3752.4,0.1346]
[1753509263752,0.918,3752.6,3752.5,2.412]
[1753509266289,0.002,3752.9,3752.5,2.93316883]
[1753509266461,0.4593,3752.6,3752.5,2.93316883]
[1753509266800,0.918,3752.6,3752.5,2.93316883]
[1753509266988,0.918,3752.6,3752.5,3.06676883]
[1753509267353,0.918,3752.6,3752.5,5.7316589]
[1753509267677,0.4593,3752.6,3752.5,5.7316589]
[1753509267873,0.002,3752.9,3752.5,3.06676883]
[1753509268082,0.002,3752.9,3752.7,2.66469772]
[1753509268391,0.4613,3752.9,3752.6,2.66480745]
[1753509268710,0.002,3752.9,3752.8,2.413]
[1753509269190,0.92,3752.9,3752.8,2.413]
[1753509274296,0.002,3752.9,3752.8,5.598826]
[1753509274590,0.92,3752.9,3752.8,2.413]
[1753509276961,0.002,3752.9,3752.8,5.21127704]
[1753509277170,0.002,3752.9,3752.8,6.07758505]
[1753509278167,0.002,3752.9,3752.8,6.17568505]
[1753509278682,0.002,3752.9,3752.8,6.07758505]
[1753509290327,0.002,3752.9,3752.8,6.99518505]
[1753509290731,0.002,3752.9,3752.8,6.89708505]
[1753509297047,0.4772,3752.9,3752.8,6.89708505]
[1753509297248,0.002,3752.9,3752.8,6.89708505]
[1753509297447,0.002,3752.9,3752.8,7.54518505]
[1753509297951,0.002,3753.5,3753.4,3.46645107]
[1753509298149,0.002,3753.5,3753.4,6.92071705]
[1753509298329,0.002,3753.5,3753.4,7.02767454]
[1753509299761,0.4772,3753.5,3753.4,7.02767454]
[1753509300257,0.9207,3753.5,3753.4,7.02767454]
[1753509300853,0.9207,3753.5,3753.4,6.22547454]
[1753509301765,0.9207,3753.5,3753.4,0.1336]
[1753509301922,0.9207,3753.5,3753.4,5.21485107]
[1753509301923,1.675,3753.5,3753.4,5.21485107]
[1753509302632,1.675,3753.5,3753.4,2.5506]
[1753509303058,1.675,3753.5,3753.4,0.1336]
[1753509303224,1.675,3753.5,3753.4,2.5506]
[1753509303852,1.0884,3753.5,3752.4,0.001]
[1753509304162,1.673,3753.4,3753.1,0.1336]
[1753509304350,1.673,3753.4,3753.2,2.418]
[1753509304551,0.7543,3753.4,3753.2,2.418]
[1753509304753,0.9187,3753.3,3753.2,2.418]
[1753509305352,0.9187,3753.3,3753.1,0.1336]
[1753509305548,0.7543,3753.4,3753.2,2.418]
[1753509306067,0.9187,3753.3,3753.2,2.418]
[1753509306593,1.673,3753.3,3753.2,2.418]
[1753509311866,0.7892,3753.2,3753.1,2.417]
[1753509312267,1.7079,3753.2,3753.1,2.417]
[1753509314591,1.7079,3753.2,3752.8,2.5506]
[1753509314800,0.7892,3753.2,3752.8,3.07214122]
[1753509315096,0.9187,3753.1,3752.8,2.5506]
[1753509315256,0.7892,3753.2,3752.8,2.5506]
[1753509315452,0.9187,3753.0,3752.8,2.5506]
[1753509315693,0.4435,3753.0,3752.8,2.5506]
[1753509315995,0.9187,3752.9,3752.8,2.5506]
[1753509318190,0.9187,3752.9,3752.8,2.5516]
[1753509319486,0.9187,3752.9,3752.8,0.1346]
[1753509319689,0.9187,3752.9,3752.8,2.5516]
[1753509322215,0.9187,3752.9,3752.8,0.1346]
[1753509322366,0.9187,3752.9,3752.8,2.5506]
[1753509323500,1.0523,3752.9,3752.8,2.417]
[1753509324292,1.0523,3752.9,3752.8,0.001]
[1753509324604,4.72835603,3752.9,3752.8,0.001]
[1753509324798,4.54420603,3752.9,3752.8,0.001]
[1753509324999,1.8796,3752.9,3752.8,0.001]
[1753509326008,4.54420603,3752.9,3752.8,0.001]
[1753509346360,7.54420603,3752.9,3752.8,0.001]
[1753509346537,8.80667353,3752.9,3752.8,0.001]
[1753509348135,3.9609,3752.9,3752.8,0.001]
[1753509348352,3.1336,3752.9,3752.8,0.001]
[1753509348853,0.1336,3752.9,3752.8,0.001]
[1753509351869,0.5965,3752.9,3752.8,0.001]
[1753509352040,1.0309,3752.9,3752.8,0.001]
[1753509360777,1.0329,3752.9,3752.8,0.001]
[1753509361586,0.1356,3752.9,3752.8,3.47377704]
[1753509361873,0.002,3752.9,3752.8,1.1564777]
[1753509362575,0.002,3752.9,3752.8,3.82115474]